bitfinex/quotes_BTCUSD_20240719
["timestamp","ask_amount","ask_price","bid_price","bid_amount"]
[1721361934769,0.310516,64409.0,64402.0,0.155273]
[1721361934974,0.310516,64409.0,64405.0,0.001]
[1721361934975,0.155261,64408.0,64405.0,0.001]
[1721361935178,0.155263,64407.0,64405.0,0.001]
[1721361935661,0.155263,64407.0,64402.0,0.155273]
[1721361935881,0.310527,64407.0,64400.0,0.156192]
[1721361936103,0.314516,64409.0,64400.0,0.156192]
[1721361936104,0.15526,64408.0,64401.0,0.1]
[1721361936312,0.15526,64408.0,64403.0,0.155271]
[1721361936524,0.15926,64408.0,64403.0,0.155271]
[1721361937176,0.15926,64408.0,64404.0,0.001]
[1721361937391,0.310534,64406.0,64404.0,0.001]
[1721361937595,0.310534,64406.0,64400.0,0.000913]
[1721361937798,0.155268,64405.0,64400.0,0.156191]
[1721361938006,0.155268,64405.0,64403.0,0.001]
[1721361938218,0.465808,64404.0,64403.0,0.001]
[1721361938434,0.155277,64401.0,64400.0,0.000913]
[1721361939505,0.836585,64401.0,64400.0,0.000913]
[1721361940567,0.842805,64401.0,64400.0,0.000913]
[1721361941397,0.844805,64401.0,64400.0,0.000913]
[1721361941826,1.04570163,64401.0,64400.0,0.000913]
[1721361942043,2.22299275,64401.0,64400.0,0.000913]
[1721361942252,2.22297219,64401.0,64400.0,0.000913]
[1721361942459,2.12997085,64401.0,64400.0,0.001913]
[1721361942872,1.82341685,64401.0,64400.0,0.001913]
[1721361943083,1.91641516,64401.0,64400.0,0.001913]
[1721361943295,1.91041516,64401.0,64400.0,0.000913]
[1721361943504,1.82141685,64401.0,64400.0,0.001913]
[1721361943709,1.31874074,64401.0,64400.0,0.002913]
[1721361943956,1.32841665,64401.0,64400.0,0.002913]
[1721361944163,1.32141665,64401.0,64400.0,0.001913]
[1721361944372,1.38146163,64401.0,64400.0,0.001913]
[1721361944581,1.39546163,64401.0,64400.0,0.002913]
[1721361945708,1.9922652,64401.0,64400.0,0.000913]
[1721361945912,1.9922652,64401.0,64400.0,0.001913]
[1721361945913,2.39805857,64401.0,64400.0,0.001913]
[1721361946131,2.20887152,64401.0,64400.0,0.001913]
[1721361946347,2.25487152,64401.0,64400.0,0.000913]
[1721361946553,2.37105612,64401.0,64400.0,0.001913]
[1721361946766,2.32505612,64401.0,64400.0,0.001913]
[1721361946986,2.20887152,64401.0,64400.0,0.001913]
[1721361947206,2.43122109,64401.0,64400.0,0.003913]
[1721361947417,2.52413111,64401.0,64400.0,0.003913]
[1721361947643,2.51013111,64401.0,64400.0,0.002913]
[1721361948062,2.51013111,64401.0,64400.0,0.003913]
[1721361948063,2.52413111,64401.0,64400.0,0.003913]
[1721361948277,2.57035474,64401.0,64400.0,0.003913]
[1721361948478,2.55422109,64401.0,64400.0,0.003913]
[1721361948683,2.39187152,64401.0,64400.0,0.001913]
[1721361948906,2.50798255,64401.0,64400.0,0.002913]
[1721361949110,2.39587152,64401.0,64400.0,0.002913]
[1721361949346,2.64308773,64401.0,64400.0,0.002913]
[1721361949591,2.64708773,64401.0,64400.0,0.003913]
[1721361949803,2.55422109,64401.0,64400.0,0.003913]
[1721361950006,2.39987152,64401.0,64400.0,0.003913]
[1721361950233,2.49273912,64401.0,64400.0,0.003913]
[1721361950883,2.46950595,64401.0,64400.0,0.003913]
[1721361951330,2.51595443,64401.0,64400.0,0.003913]
[1721361951562,2.39987113,64401.0,64400.0,0.003913]
[1721361951776,2.5542207,64401.0,64400.0,0.003913]
[1721361952012,2.55422177,64401.0,64400.0,0.003913]
[1721361952242,2.67024056,64401.0,64400.0,0.003913]
[1721361952458,2.55422177,64401.0,64400.0,0.003913]
[1721361952676,2.64703433,64401.0,64400.0,0.003913]
[1721361952889,2.55422177,64401.0,64400.0,0.003913]
[1721361953305,2.8743481,64401.0,64400.0,0.003913]
[1721361954320,2.99032205,64401.0,64400.0,0.003913]
[1721361954730,2.52541848,64401.0,64400.0,0.003913]
[1721361954936,2.40944453,64401.0,64400.0,0.003913]
[1721361955139,2.34693438,64401.0,64400.0,0.003913]
[1721361955541,2.25416723,64401.0,64400.0,0.003913]
[1721361955842,2.52541578,64401.0,64400.0,0.003913]
[1721361956328,2.40944423,64401.0,64400.0,0.003913]
[1721361956474,2.45659725,64401.0,64400.0,0.003913]
[1721361957205,2.54932615,64401.0,64400.0,0.003913]
[1721361958238,2.50217313,64401.0,64400.0,0.003913]
[1721361958456,2.47897836,64401.0,64400.0,0.003913]
[1721361959387,2.4094446,64401.0,64400.0,0.003913]
[1721361960139,2.3594446,64401.0,64400.0,0.003913]
[1721361960948,2.35944405,64401.0,64400.0,0.003913]
[1721361962200,2.35944405,64401.0,64391.0,0.000913]
[1721361962201,2.023964,64393.0,64391.0,0.000913]
[1721361962420,2.42374574,64393.0,64391.0,0.000913]
[1721361962647,2.43342325,64393.0,64391.0,0.000913]
[1721361963291,2.49922325,64393.0,64391.0,0.000913]
[1721361963500,2.65357282,64393.0,64391.0,0.000913]
[1721361963707,2.65357282,64393.0,64392.0,0.001913]
[1721361963708,2.65757282,64393.0,64392.0,0.001913]
[1721361963920,2.67157336,64393.0,64392.0,0.001913]
[1721361964665,2.77157336,64393.0,64392.0,0.001913]
[1721361964908,2.61722379,64393.0,64392.0,0.001913]
[1721361967592,2.52842379,64393.0,64392.0,0.001913]
[1721361968865,2.55142379,64393.0,64392.0,0.001913]
[1721361969075,2.56071028,64393.0,64392.0,0.001913]
[1721361970445,2.56071046,64393.0,64392.0,0.001913]
[1721361970646,2.71506003,64393.0,64392.0,0.001913]
[1721361972928,3.02565203,64393.0,64392.0,0.001913]
[1721361973127,3.02565203,64393.0,64389.0,0.009174]
[1721361973128,1.137124,64390.0,64389.0,0.009174]
[1721361973268,2.12259797,64390.0,64389.0,0.009174]
[1721361973474,2.27694857,64390.0,64389.0,0.009174]
[1721361974419,2.29094857,64390.0,64389.0,0.009174]
[1721361974629,2.30494857,64390.0,64389.0,0.009174]
[1721361975266,2.39271136,64390.0,64389.0,0.009174]
[1721361976034,2.40671136,64390.0,64389.0,0.009174]
[1721361976585,2.35816931,64390.0,64389.0,0.009174]
[1721361976796,2.40649601,64390.0,64389.0,0.009174]
[1721361977198,2.45284144,64390.0,64389.0,0.009174]
[1721361977378,2.47602154,64390.0,64389.0,0.009174]
[1721361977578,2.40649601,64390.0,64389.0,0.009174]
[1721361977784,2.47605778,64390.0,64389.0,0.009174]
[1721361977987,2.40649601,64390.0,64389.0,0.009174]
[1721361978189,2.41421789,64390.0,64389.0,0.009174]
[1721361978406,2.47585721,64390.0,64389.0,0.009174]
[1721361978810,2.47585658,64390.0,64389.0,0.009174]
[1721361979215,2.40626885,64390.0,64389.0,0.009174]
[1721361979627,2.35816931,64390.0,64389.0,0.009174]
[1721361979831,2.4067218,64390.0,64389.0,0.009174]
[1721361980034,2.49953001,64390.0,64389.0,0.009174]
[1721361980618,0.705325,64381.0,64374.0,0.0641]
[1721361980817,1.37356911,64381.0,64374.0,0.0641]
[1721361981853,1.38756911,64381.0,64374.0,0.0641]
[1721361982030,2.31951911,64381.0,64374.0,0.0641]
[1721361982950,2.33351947,64381.0,64374.0,0.0641]
[1721361983356,2.74096947,64381.0,64372.0,0.0796]
[1721361984762,2.72696947,64381.0,64372.0,0.0796]
[1721361984972,2.74096947,64381.0,64372.0,0.0796]
[1721361986264,2.78743513,64381.0,64372.0,0.0796]
[1721361986673,2.78743947,64381.0,64372.0,0.0796]
[1721361987077,2.74096949,64381.0,64372.0,0.0796]
[1721361987272,2.78743947,64381.0,64372.0,0.0796]
[1721361987708,2.70463947,64381.0,64372.0,0.0796]
[1721361988362,2.65816949,64381.0,64372.0,0.0796]
[1721361989174,2.72786795,64381.0,64372.0,0.0796]
[1721361989399,2.72788815,64381.0,64372.0,0.0796]
[1721361989738,2.72788858,64381.0,64372.0,0.0796]
[1721361989881,2.72788777,64381.0,64372.0,0.0796]
[1721361990079,2.65816949,64381.0,64372.0,0.0796]
[1721361990706,2.75112771,64381.0,64372.0,0.0796]
[1721361991344,2.77436726,64381.0,64372.0,0.0796]
[1721361991659,2.65816949,64381.0,64372.0,0.0796]
[1721361991857,2.65816949,64381.0,64371.0,0.0642]
[1721361992114,3.03471949,64381.0,64380.0,0.83307008]
[1721361992287,3.2122318,64381.0,64380.0,0.7884058]
[1721361992489,3.22169176,64381.0,64380.0,0.7884058]
[1721361992833,3.08225822,64381.0,64380.0,0.7884058]
[1721361993000,3.06825822,64381.0,64380.0,0.7884058]
[1721361993331,3.24025822,64381.0,64380.0,0.08160876]
[1721361993556,3.24025822,64381.0,64377.0,3.3e-07]
[1721361993557,0.05,64378.0,64377.0,3.3e-07]
[1721361993688,0.826672,64377.0,64365.0,0.061013]
[1721361993894,1.637513,64367.0,64365.0,0.061013]
[1721361994101,2.18529408,64367.0,64365.0,0.061013]
[1721361994301,2.18529408,64367.0,64366.0,0.07808779]
[1721361994302,1.87457608,64367.0,64366.0,0.07808779]
[1721361994517,1.35157608,64367.0,64366.0,0.21758779]
[1721361994727,1.34189474,64367.0,64366.0,0.21758779]
[1721361994921,0.93117674,64367.0,64366.0,0.21758779]
[1721361995365,0.94517674,64367.0,64366.0,0.140413]
[1721361995572,0.95817674,64367.0,64366.0,0.140413]
[1721361997748,0.493077,64367.0,64366.0,0.140413]
[1721361997966,0.027,64367.0,64366.0,0.140413]
[1721361999006,0.182359,64367.0,64366.0,0.140413]
[1721361999218,0.013,64367.0,64366.0,0.140413]
[1721361999420,0.155356,64369.0,64367.0,0.141]
[1721361999616,0.155356,64368.0,64367.0,0.141]
[1721362001661,0.164356,64368.0,64367.0,0.141]
[1721362002245,0.177356,64368.0,64367.0,0.141]
[1721362002382,0.022,64368.0,64367.0,0.141]
[1721362003617,0.022,64368.0,64367.0,0.296359]
[1721362004460,0.013,64368.0,64367.0,0.296359]
[1721362004758,0.155344,64373.0,64369.0,0.1429]
[1721362004933,0.155344,64373.0,64368.0,0.1429]
[1721362005367,0.36650523,64378.0,64366.0,0.000913]
[1721362005368,0.5402235,64369.0,64366.0,0.000913]
[1721362005603,1.88492396,64367.0,64366.0,0.000913]
[1721362005724,1.85279474,64367.0,64366.0,0.000913]
[1721362005930,2.31293285,64367.0,64366.0,0.000913]
[1721362006132,2.47549872,64367.0,64366.0,0.000913]
[1721362006331,2.49028242,64367.0,64366.0,0.000913]
[1721362006541,2.6298508,64367.0,64366.0,0.000913]
[1721362006745,2.10388323,64367.0,64366.0,0.000913]
[1721362007309,2.23529169,64367.0,64366.0,0.000913]
[1721362007430,2.27633231,64367.0,64366.0,0.000913]
[1721362007910,2.29033231,64367.0,64366.0,0.000913]
[1721362008140,2.29975762,64367.0,64366.0,0.000913]
[1721362008371,2.45410719,64367.0,64366.0,0.000913]
[1721362008611,2.45428545,64367.0,64366.0,0.000913]
[1721362008852,2.44460286,64367.0,64366.0,0.000913]
[1721362009100,2.76519616,64367.0,64366.0,0.000913]
[1721362009320,2.77919616,64367.0,64366.0,0.000913]
[1721362010696,2.75119616,64367.0,64366.0,0.000913]
[1721362011108,2.76440816,64367.0,64366.0,0.000913]
[1721362011331,2.75040816,64367.0,64366.0,0.000913]
[1721362011751,2.72810562,64367.0,64366.0,0.000913]
[1721362011978,2.85730822,64367.0,64366.0,0.000913]
[1721362012185,2.84330822,64367.0,64366.0,0.000913]
[1721362012360,2.84281536,64367.0,64366.0,0.000913]
[1721362012961,2.9421844,64367.0,64366.0,0.000913]
[1721362013186,2.84197687,64367.0,64366.0,0.000913]
[1721362013343,3.21529487,64367.0,64366.0,1e-06]
[1721362013553,3.21618032,64367.0,64366.0,1e-06]
[1721362013751,3.37315817,64367.0,64366.0,1e-06]
[1721362013952,3.38713099,64367.0,64366.0,1e-06]
[1721362014182,2.97199004,64367.0,64366.0,1e-06]
[1721362014381,2.81764047,64367.0,64366.0,1e-06]
[1721362014581,2.76511275,64367.0,64366.0,1e-06]
[1721362014784,2.75111275,64367.0,64366.0,1e-06]
[1721362014988,2.90854776,64367.0,64366.0,1e-06]
[1721362015198,2.75161538,64367.0,64366.0,1e-06]
[1721362015510,2.91996495,64367.0,64366.0,1e-06]
[1721362015957,2.75161538,64367.0,64366.0,1e-06]
[1721362016150,2.76561538,64367.0,64366.0,1e-06]
[1721362016351,2.92253538,64367.0,64366.0,1e-06]
[1721362016492,2.76561538,64367.0,64366.0,1e-06]
[1721362017470,2.76472993,64367.0,64366.0,1e-06]
[1721362017638,2.9190795,64367.0,64366.0,1e-06]
[1721362018122,2.86960562,64367.0,64366.0,1e-06]
[1721362018330,2.91917877,64367.0,64366.0,1e-06]
[1721362018682,2.92013508,64367.0,64366.0,1e-06]
[1721362019690,2.99730987,64367.0,64366.0,1e-06]
[1721362019895,2.99635356,64367.0,64366.0,1e-06]
[1721362020316,2.91917877,64367.0,64366.0,1e-06]
[1721362020893,2.91923896,64367.0,64366.0,1e-06]
[1721362021103,2.87928901,64367.0,64366.0,1e-06]
[1721362021304,2.91924095,64367.0,64366.0,1e-06]
[1721362023063,3.46402848,64367.0,64366.0,1e-06]
[1721362023262,3.30713374,64367.0,64366.0,1e-06]
[1721362023481,3.46402848,64367.0,64366.0,1e-06]
[1721362023681,2.99575514,64367.0,64366.0,1e-06]
[1721362023902,3.15261835,64367.0,64366.0,1e-06]
[1721362024114,3.21291835,64367.0,64366.0,1e-06]
[1721362024346,3.05605514,64367.0,64366.0,1e-06]
[1721362024888,3.21290723,64367.0,64366.0,1e-06]
[1721362025091,3.05605514,64367.0,64366.0,1e-06]
[1721362025457,1.948492,64355.0,64354.0,0.0603]
[1721362025629,2.35173267,64355.0,64354.0,0.0603]
[1721362026240,2.50608224,64355.0,64354.0,0.0603]
[1721362026825,2.38990746,64355.0,64354.0,0.061224]
[1721362027025,2.49638792,64355.0,64354.0,0.061224]
[1721362027240,2.35172251,64355.0,64354.0,0.061224]
[1721362027608,2.36572251,64355.0,64354.0,0.061224]
[1721362027726,2.31572251,64355.0,64354.0,0.061224]
[1721362027927,2.2832469,64355.0,64354.0,0.061224]
[1721362028130,2.6440229,64355.0,64354.0,0.061224]
[1721362028327,2.82160358,64355.0,64354.0,0.061224]
[1721362028755,2.72868347,64355.0,64354.0,0.061224]
[1721362029160,2.82160358,64355.0,64354.0,0.061224]
[1721362030246,2.82159724,64355.0,64354.0,0.061224]
[1721362030467,2.82159508,64355.0,64354.0,0.061224]
[1721362030646,2.66724578,64355.0,64354.0,0.061224]
[1721362030887,2.5743339,64355.0,64354.0,0.061224]
[1721362031069,2.66724578,64355.0,64354.0,0.061224]
[1721362031866,2.5743339,64355.0,64354.0,0.061224]
[1721362032119,2.82159439,64355.0,64354.0,0.061224]
[1721362032380,2.72868347,64355.0,64354.0,0.000924]
[1721362033149,2.30646617,64355.0,64354.0,0.083024]
[1721362033415,2.20387374,64355.0,64354.0,0.083024]
[1721362033673,2.30646542,64355.0,64354.0,0.083024]
[1721362033911,2.21355741,64355.0,64354.0,0.083024]
[1721362034387,2.30646542,64355.0,64354.0,0.083024]
[1721362034634,2.21355741,64355.0,64354.0,0.083024]
[1721362035158,2.41790698,64355.0,64354.0,0.083024]
[1721362035399,2.52357732,64355.0,64354.0,0.143324]
[1721362035627,2.57357732,64355.0,64354.0,0.143324]
[1721362036897,2.66250594,64355.0,64354.0,0.143324]
[1721362037362,2.66250594,64355.0,64354.0,0.061224]
[1721362038366,2.50815637,64355.0,64354.0,0.061224]
[1721362039828,2.5087429,64355.0,64354.0,0.061224]
[1721362040075,2.5087429,64355.0,64354.0,0.000924]
[1721362040546,2.3925974,64355.0,64354.0,0.000924]
[1721362040774,2.40198183,64355.0,64354.0,0.000924]
[1721362041035,2.5563314,64355.0,64354.0,0.000924]
[1721362041244,2.8671074,64355.0,64354.0,0.000924]
[1721362041450,2.917282,64355.0,64354.0,0.000924]
[1721362041656,2.8671074,64355.0,64354.0,0.000924]
[1721362042302,3.0009074,64355.0,64354.0,0.000924]
[1721362042503,3.0009074,64355.0,64350.0,1.009174]
[1721362042504,1.959372,64351.0,64350.0,1.009174]
[1721362042707,2.58002464,64351.0,64350.0,1.009174]
[1721362042912,2.39110331,64351.0,64350.0,1.009174]
[1721362043138,2.44133113,64351.0,64350.0,1.009174]
[1721362043743,2.66433113,64351.0,64350.0,1.009174]
[1721362044566,2.69233113,64351.0,64350.0,1.009174]
[1721362045241,2.67833113,64351.0,64350.0,1.009174]
[1721362046150,2.67833686,64351.0,64350.0,1.009174]
[1721362046348,2.69233686,64351.0,64350.0,1.009174]
[1721362046711,2.70633686,64351.0,64350.0,1.009174]
[1721362047004,3.01713186,64351.0,64350.0,0.915934]
[1721362047211,2.259823,64334.0,64331.0,0.0644]
[1721362047408,2.7631013,64334.0,64331.0,0.0644]
[1721362047609,2.7631013,64334.0,64331.0,0.002]
[1721362047610,2.81077054,64334.0,64331.0,0.002]
[1721362048092,2.95022326,64334.0,64331.0,0.002]
[1721362048328,3.09722326,64334.0,64331.0,0.002]
[1721362048527,2.95777054,64334.0,64331.0,0.002]
[1721362048752,2.89157054,64334.0,64331.0,0.002]
[1721362049118,2.89157054,64334.0,64331.0,0.0644]
[1721362049119,2.81077054,64334.0,64331.0,0.0644]
[1721362049244,2.81077054,64334.0,64331.0,0.002]
[1721362049245,2.81138861,64334.0,64331.0,0.002]
[1721362050079,2.83938861,64334.0,64331.0,0.002]
[1721362050288,2.99373818,64334.0,64331.0,0.002]
[1721362050493,2.96573818,64334.0,64331.0,0.002]
[1721362051035,2.97973818,64334.0,64331.0,0.002]
[1721362051242,2.93824273,64334.0,64331.0,0.002]
[1721362051445,2.95224273,64334.0,64331.0,0.002]
[1721362051650,3.01414273,64334.0,64331.0,0.002]
[1721362051855,2.95224273,64334.0,64331.0,0.002]
[1721362052485,2.95224285,64334.0,64331.0,0.002]
[1721362052662,2.79789328,64334.0,64331.0,0.002]
[1721362054194,2.91404348,64334.0,64331.0,0.002]
[1721362054726,2.92342619,64334.0,64331.0,0.002]
[1721362054933,2.92323917,64334.0,64331.0,0.002]
[1721362055328,2.79740043,64334.0,64331.0,0.002]
[1721362055529,2.96143842,64334.0,64331.0,0.002]
[1721362055811,2.95175,64334.0,64331.0,0.002]
[1721362055985,2.96143842,64334.0,64331.0,0.002]
[1721362056186,2.89997723,64334.0,64331.0,0.002]
[1721362056610,2.89997724,64334.0,64331.0,0.002]
[1721362056809,1.70039888,64334.0,64333.0,0.860552]
[1721362057053,2.20039888,64334.0,64333.0,0.860552]
[1721362057228,2.25021186,64334.0,64333.0,0.860552]
[1721362057455,1.93577224,64334.0,64333.0,0.860552]
[1721362057803,1.67239888,64334.0,64333.0,0.923952]
[1721362058004,1.87552188,64334.0,64333.0,0.923952]
[1721362058229,1.87983345,64334.0,64333.0,0.923952]
[1721362058439,1.86583345,64334.0,64333.0,0.923952]
[1721362058667,1.92811245,64334.0,64333.0,0.923952]
[1721362058903,1.94211245,64334.0,64333.0,0.923952]
[1721362059123,2.02218614,64334.0,64333.0,0.923952]
[1721362059336,2.00818614,64334.0,64333.0,0.923952]
[1721362060293,2.02218614,64334.0,64333.0,0.923952]
[1721362060517,1.94211245,64334.0,64333.0,0.923952]
[1721362061059,1.44211245,64334.0,64333.0,0.923952]
[1721362061404,1.94211245,64334.0,64333.0,0.923952]
[1721362061610,1.44211245,64334.0,64333.0,0.923952]
[1721362062272,1.14092216,64334.0,64333.0,0.923952]
[1721362062439,1.13123545,64334.0,64333.0,0.923952]
[1721362062642,0.71097574,64334.0,64333.0,0.92413902]
[1721362062869,0.183438,64334.0,64333.0,0.92413902]
[1721362063066,0.028,64334.0,64333.0,0.92413902]
[1721362063459,0.310849,64340.0,64333.0,0.92413902]
[1721362063460,0.15543,64338.0,64337.0,0.00018702]
[1721362063676,0.15543,64338.0,64337.0,0.14598702]
[1721362064334,0.466288,64338.0,64337.0,0.1458]
[1721362065029,0.466288,64338.0,64337.0,0.14598702]
[1721362065030,0.16943,64338.0,64337.0,0.14598702]
[1721362065477,0.014,64338.0,64337.0,0.14598702]
[1721362066684,0.028,64338.0,64337.0,0.14598702]
[1721362067106,0.028,64338.0,64337.0,0.30141802]
[1721362067529,0.028,64338.0,64337.0,0.92314402]
[1721362068347,0.014,64338.0,64337.0,0.92314402]
[1721362068548,0.015,64338.0,64337.0,0.92314402]
[1721362068900,0.001,64338.0,64337.0,0.92314402]
[1721362069095,0.003,64338.0,64337.0,0.92314402]
[1721362069754,0.001,64338.0,64337.0,0.92314402]
[1721362070084,0.001,64338.0,64337.0,0.92414402]
[1721362071148,0.001,64338.0,64337.0,1.23500702]
[1721362071351,0.002794,64349.0,64348.0,0.13798702]
[1721362071552,0.002794,64349.0,64346.0,0.310815]
[1721362071553,0.46304871,64350.0,64349.0,0.13798702]
[1721362071904,0.155391,64354.0,64347.0,0.155406]
[1721362071905,0.155391,64354.0,64352.0,0.1378]
[1721362072088,0.16484935,64354.0,64353.0,0.00018702]
[1721362072389,0.16484935,64354.0,64353.0,0.1378]
[1721362073010,0.16484935,64354.0,64353.0,0.13798702]
[1721362073217,0.17684935,64354.0,64353.0,0.13798702]
[1721362073620,0.155391,64354.0,64353.0,0.13798702]
[1721362073996,0.167391,64354.0,64353.0,0.13798702]
[1721362074856,0.012,64354.0,64353.0,0.13798702]
[1721362075051,0.02,64354.0,64353.0,0.13798702]
[1721362079708,0.02,64354.0,64353.0,0.82716402]
[1721362079910,0.02,64354.0,64353.0,1.44873402]
[1721362080159,0.02,64354.0,64353.0,1.60311576]
[1721362080338,0.008,64354.0,64353.0,1.60311576]
[1721362080742,0.012,64354.0,64353.0,1.60311576]
[1721362081157,0.013,64354.0,64353.0,1.60411576]
[1721362082034,0.001,64354.0,64353.0,1.60411576]
[1721362082437,0.001,64354.0,64353.0,1.60811576]
[1721362092615,0.00184,64354.0,64353.0,1.60811576]
[1721362093326,0.00184,64354.0,64353.0,1.73717562]
[1721362099253,0.00184,64354.0,64353.0,0.89260562]
[1721362099426,0.00184,64354.0,64353.0,0.76354576]
[1721362099628,0.00184,64354.0,64353.0,1.20339258]
[1721362100189,0.00184,64354.0,64353.0,1.51417758]
[1721362100402,0.00184,64354.0,64353.0,1.20339258]
[1721362102707,0.00184,64354.0,64353.0,1.20339269]
[1721362105868,0.00184,64354.0,64353.0,1.20339274]
[1721362108353,0.00184,64354.0,64353.0,1.29249274]
[1721362109240,0.00184,64354.0,64353.0,1.29249373]
[1721362109567,0.06544,64354.0,64353.0,0.13424999]
[1721362109773,0.46801,64354.0,64353.0,0.13424999]
[1721362110018,0.15723,64354.0,64353.0,0.13424999]
[1721362110220,0.15723,64354.0,64353.0,0.28964199]
[1721362110221,0.00184,64354.0,64353.0,0.28964199]
[1721362110597,0.00184,64354.0,64353.0,0.21934999]
[1721362111003,0.00284,64354.0,64353.0,0.21934999]
[1721362111408,0.00184,64354.0,64353.0,0.21934999]
[1721362111765,0.00584,64354.0,64353.0,0.37474199]
[1721362112157,0.00484,64354.0,64353.0,0.37374199]
[1721362112523,0.00484,64354.0,64353.0,0.21836247]
[1721362114225,0.00484,64354.0,64353.0,0.08928702]
[1721362116011,0.30343,64354.0,64353.0,0.0891]
[1721362116214,0.14804,64354.0,64351.0,0.00018702]
[1721362116431,0.61421,64354.0,64353.0,0.08928702]
[1721362117068,0.54831,64354.0,64353.0,0.08928702]
[1721362117297,0.00084,64354.0,64353.0,0.08928702]
[1721362118004,0.00484,64354.0,64353.0,0.08928702]
[1721362118387,0.00884,64354.0,64353.0,0.08928702]
[1721362118891,0.00884,64354.0,64351.0,0.38796779]
[1721362119104,0.00884,64354.0,64353.0,0.0891]
[1721362119850,0.00084,64354.0,64353.0,0.0891]
[1721362120048,0.00484,64354.0,64353.0,0.0891]
[1721362120680,0.00084,64354.0,64353.0,0.0891]
[1721362121079,0.00484,64354.0,64353.0,0.0891]
[1721362122522,0.14794,64354.0,64353.0,0.0891]
[1721362123082,0.155397,64351.0,64350.0,0.0891]
[1721362123391,0.155395,64353.0,64350.0,0.0891]
[1721362123860,0.155395,64352.0,64350.0,0.0891]
[1721362124874,0.155392,64353.0,64350.0,0.0891]
[1721362125076,0.14394,64354.0,64352.0,0.0891]
[1721362125292,0.002794,64353.0,64352.0,0.0891]
[1721362126641,0.158186,64353.0,64352.0,0.0891]
[1721362126846,0.155392,64353.0,64352.0,0.0901]
[1721362126959,0.157392,64353.0,64352.0,0.0901]
[1721362134374,0.63858881,64353.0,64352.0,0.001]
[1721362134608,2.811597,64353.0,64352.0,0.001]
[1721362134775,2.811597,64353.0,64333.0,0.778552]
[1721362134776,1.277132,64339.0,64333.0,0.778552]
[1721362134975,2.03155211,64339.0,64333.0,0.778552]
[1721362135176,2.0979047,64339.0,64333.0,0.778552]
[1721362135492,2.20330511,64339.0,64333.0,0.778552]
[1721362135691,2.31965805,64339.0,64333.0,0.778552]
[1721362135871,2.31965811,64339.0,64333.0,0.778552]
[1721362136059,2.2963279,64339.0,64333.0,0.778552]
[1721362136625,2.3103279,64339.0,64333.0,0.778552]
[1721362137178,2.28703606,64339.0,64333.0,0.778552]
[1721362137377,2.30103606,64339.0,64333.0,0.778552]
[1721362137851,2.23130511,64339.0,64333.0,0.778552]
[1721362138063,2.32121307,64339.0,64333.0,0.778552]
[1721362138224,2.3115277,64339.0,64333.0,0.778552]
[1721362138429,2.32121338,64339.0,64333.0,0.778552]
[1721362138607,2.3615277,64339.0,64333.0,0.778552]
[1721362138811,2.48714773,64339.0,64333.0,0.778552]
[1721362139049,2.34421363,64339.0,64333.0,0.778552]
[1721362139251,2.25430567,64339.0,64333.0,0.778552]
[1721362139590,2.30430567,64339.0,64333.0,0.778552]
[1721362139918,2.25430567,64339.0,64333.0,0.778552]
[1721362140329,2.30430567,64339.0,64333.0,0.778552]
[1721362140757,2.29461974,64339.0,64333.0,0.778552]
[1721362140964,2.34720432,64339.0,64333.0,0.778552]
[1721362141365,2.32395258,64339.0,64333.0,0.778552]
[1721362142346,2.25430615,64339.0,64333.0,0.778552]
[1721362142908,0.96880517,64339.0,64334.0,0.07717479]
[1721362143107,1.45951374,64339.0,64333.0,0.778552]
[1721362143943,1.77036674,64339.0,64333.0,0.778552]
[1721362144543,1.92471631,64339.0,64333.0,0.778552]
[1721362145264,1.97471631,64339.0,64333.0,0.778552]
[1721362145469,2.12101631,64339.0,64333.0,0.778552]
[1721362145665,2.43186931,64339.0,64333.0,0.778552]
[1721362145846,1.91666674,64339.0,64333.0,0.778552]
[1721362146578,2.30051974,64339.0,64333.0,0.778552]
[1721362148540,2.41020685,64339.0,64333.0,0.778552]
[1721362149141,2.72105985,64339.0,64333.0,0.778552]
[1721362149280,2.45657082,64339.0,64333.0,0.778552]
[1721362149478,2.61092039,64339.0,64333.0,0.778552]
[1721362149682,2.90777339,64339.0,64333.0,0.778552]
[1721362150081,2.59692093,64339.0,64333.0,0.778552]
[1721362150375,2.86140991,64339.0,64333.0,0.778552]
[1721362150576,2.87540991,64339.0,64333.0,0.778552]
[1721362151741,2.56455691,64339.0,64333.0,0.778552]
[1721362151976,2.068223,64334.0,64333.0,0.35810165]
[1721362152229,1.946623,64325.0,64324.0,0.009185]
[1721362152377,2.52161508,64325.0,64324.0,0.009185]
[1721362152585,2.85553608,64325.0,64324.0,0.009185]
[1721362153227,2.85553661,64325.0,64324.0,0.009185]
[1721362153373,3.00988618,64325.0,64324.0,0.009185]
[1721362153822,2.82388618,64325.0,64324.0,0.009185]
[1721362154020,2.83788618,64325.0,64324.0,0.009185]
[1721362155153,2.82388618,64325.0,64324.0,0.009185]
[1721362155359,2.80019631,64325.0,64324.0,0.009185]
[1721362155558,2.81419631,64325.0,64324.0,0.009185]
[1721362155770,2.82819631,64325.0,64324.0,0.009185]
[1721362157525,2.82819631,64325.0,64315.0,0.009185]
[1721362157526,2.260302,64316.0,64315.0,1e-06]
[1721362157750,2.24661974,64316.0,64315.0,1e-06]
[1721362157975,2.34661974,64316.0,64315.0,1e-06]
[1721362158182,2.36961974,64316.0,64315.0,1e-06]
[1721362159165,2.38361974,64316.0,64315.0,1e-06]
[1721362159578,2.39761974,64316.0,64315.0,1e-06]
[1721362159779,2.55196931,64316.0,64315.0,1e-06]
[1721362159981,2.53796931,64316.0,64315.0,1e-06]
[1721362160422,2.55196931,64316.0,64315.0,1e-06]
[1721362160629,2.86293331,64316.0,64315.0,1e-06]
[1721362162589,1.89834052,64316.0,64315.0,1e-06]
[1721362162784,1.84761974,64316.0,64315.0,1e-06]
[1721362163007,1.87075574,64316.0,64315.0,1e-06]
[1721362163439,1.37075574,64316.0,64315.0,1e-06]
[1721362163614,1.87075574,64316.0,64315.0,1e-06]